fUSD/lending_fUSD_20251002
["ID","MTS","AMOUNT","RATE_DAILY","PERIOD"]
[388866559,1759439094572,458.16,0.00015982,2]
[388866560,1759439108430,-159.92,0.00016618,2]
[388866561,1759439112219,150.0,0.00015288,2]
[388866562,1759439112318,150.0,0.00015288,2]
[388866563,1759439112477,150.0,0.00015288,2]
[388866564,1759439117598,150.0,0.00015288,2]
[388866565,1759439117662,150.0,0.00015288,2]
[388866566,1759439118911,150.0,0.00015288,2]
[388866567,1759439122431,150.0,0.00015288,2]
[388866568,1759439123883,191.43861846,0.00016579,2]
[388866570,1759439125520,244.98311025,0.00015288,2]
[388866571,1759439125892,156.90048431,0.00015288,2]
[388866572,1759439125938,150.0,0.00015288,2]
[388866573,1759439127283,-244.98311025,0.00016618,2]
[388866574,1759439128809,-488.5,0.00016618,2]
[388866575,1759439131497,150.0,0.00015288,2]
[388866576,1759439131646,150.0,0.00015288,2]
[388866577,1759439134742,150.0,0.00015288,2]
[388866578,1759439135172,150.0,0.00015288,2]
[388866579,1759439136071,150.0,0.00015288,2]
[388866581,1759439161154,200.0,0.00032091,120]
[388866582,1759439220686,170.59,0.00016399,2]
[388866583,1759439323025,198.44,0.00032091,60]
[388866585,1759439410294,200.0,0.00015887,2]
[388866586,1759439425915,191.43861846,0.00016525,2]
[388866596,1759439431924,-1807.01762166,0.00016618,2]
[388866599,1759439431966,-616.93065259,0.00016618,2]
[388866600,1759439431979,-1066.1337988,0.00016618,2]
[388866601,1759439431988,-331.20993938,0.00016626,2]
[388866602,1759439431998,-1769.54696085,0.00016633,2]
[388866603,1759439432008,-250.0,0.00016633,2]
[388866604,1759439432018,-1200.0,0.00016647,2]
[388866605,1759439432027,-300.0,0.00016647,2]
[388866606,1759439432038,-224.0,0.00016647,2]
[388866607,1759439432047,-2500.0,0.00016648,2]
[388866608,1759439432056,-151.0,0.0001668,2]
[388866609,1759439432066,-962.03990458,0.0001673,2]
[388866610,1759439432076,-232.868,0.0001673,2]
[388866611,1759439432086,-278.0232,0.0001673,2]
[388866612,1759439432095,-465.98495176,0.000168,2]
[388866613,1759439432105,-1415.58,0.000168,2]
[388866614,1759439432114,-550.0,0.0001681,2]
[388866615,1759439432124,-18133.56,0.00016811,2]
[388866616,1759439432133,-465.98495175,0.00016811,2]
[388866617,1759439432143,-151.0,0.0001682,2]
[388866618,1759439432152,-151.0,0.0001682,2]
[388866619,1759439432162,-151.0,0.0001682,2]
[388866620,1759439432172,-151.0,0.0001682,2]
[388866621,1759439432182,-200.0,0.0001682,2]
[388866622,1759439432192,-151.0,0.0001682,2]
[388866623,1759439432202,-151.0,0.0001682,2]
[388866624,1759439432211,-160.77920174,0.0001682,2]
[388866625,1759439432221,-500.0,0.0001682,2]
[388866626,1759439432231,-500.0,0.0001682,2]
[388866627,1759439432241,-286.65114906,0.0001682,2]
[388866628,1759439432251,-200.0,0.0001682,2]
[388866629,1759439432260,-151.0,0.0001682,2]
[388866631,1759439432270,-298.12135804,0.0001682,2]
[388866633,1759439432280,-151.0,0.0001682,2]
[388866635,1759439432290,-151.0,0.0001682,2]
[388866637,1759439432299,-151.0,0.0001682,2]
[388866640,1759439432315,-151.0,0.0001682,2]
[388866642,1759439432324,-151.0,0.0001682,2]
[388866644,1759439432335,-151.0,0.0001682,2]
[388866646,1759439432344,-151.0,0.0001682,2]
[388866648,1759439432355,-500.0,0.0001682,2]
[388866650,1759439432364,-151.0,0.0001682,2]
[388866652,1759439432374,-500.0,0.0001682,2]
[388866654,1759439432383,-151.0,0.0001682,2]
[388866656,1759439432393,-151.0,0.0001682,2]
[388866658,1759439432403,-151.0,0.0001682,2]
[388866660,1759439432412,-151.0,0.0001682,2]
[388866662,1759439432422,-151.0,0.0001682,2]
[388866664,1759439432432,-200.0,0.0001682,2]
[388866666,1759439432442,-151.0,0.0001682,2]
[388866668,1759439432452,-151.0,0.0001682,2]
[388866670,1759439432462,-151.0,0.0001682,2]
[388866671,1759439432473,-151.0,0.0001682,2]
[388866672,1759439432484,-151.0,0.0001682,2]
[388866673,1759439432494,-151.0,0.0001682,2]
[388866674,1759439432507,-151.0,0.0001682,2]
[388866675,1759439432518,-1243.96,0.0001682,2]
[388866676,1759439432528,-465.98495175,0.00016822,2]
[388866677,1759439432539,-1668.371,0.00016829,2]
[388866678,1759439432550,-500.0,0.00016829,2]
[388866679,1759439432560,-321.28155228,0.00016829,2]
[388866680,1759439432570,-500.0,0.00016829,2]
[388866681,1759439432581,-500.0,0.00016829,2]
[388866682,1759439432592,-500.0,0.00016829,2]
[388866683,1759439432602,-300.533579,0.00016829,2]
[388866684,1759439432613,-500.0,0.00016829,2]
[388866685,1759439432623,-500.0,0.00016829,2]
[388866686,1759439432634,-500.0,0.00016829,2]
[388866687,1759439432645,-500.0,0.00016829,2]
[388866688,1759439432657,-500.0,0.00016829,2]
[388866689,1759439432667,-500.0,0.00016829,2]
[388866690,1759439432679,-500.0,0.00016829,2]
[388866691,1759439432689,-557.71221492,0.00016829,2]
[388866692,1759439432700,-500.0,0.00016829,2]
[388866693,1759439432711,-500.0,0.00016829,2]
[388866694,1759439432721,-500.0,0.00016829,2]
[388866695,1759439432731,-500.0,0.00016829,2]
[388866696,1759439432741,-98144.41062889,0.0001683,2]
[388866697,1759439432751,-465.98495175,0.00016833,2]
[388866698,1759439432762,-465.98495175,0.00016844,2]
[388866699,1759439432993,-465.98495175,0.00016856,2]
[388866700,1759439433003,-465.98495175,0.00016867,2]
[388866701,1759439433012,-465.98495175,0.00016878,2]
[388866702,1759439433022,-465.98495175,0.00016889,2]
[388866703,1759439433031,-2500.0,0.00016896,2]
[388866704,1759439433041,-151.0,0.00016897,2]
[388866705,1759439433051,-163.31675668,0.00016899,2]
[388866706,1759439433060,-32780.2636,0.000169,2]
[388866707,1759439433070,-1000.0,0.000169,2]
[388866708,1759439433081,-500.0,0.000169,2]
[388866709,1759439433090,-674.36361128,0.000169,2]
[388866710,1759439433100,-344.03779964,0.000169,2]
[388866711,1759439433109,-192106.7575,0.000169,2]
[388866712,1759439433118,-465.98495175,0.000169,2]
[388866713,1759439433128,-282.85211267,0.000169,2]
[388866714,1759439433137,-200.6587636,0.000169,2]
[388866715,1759439433147,-654.94289593,0.000169,2]
[388866716,1759439433156,-2106.84060082,0.000169,2]
[388866717,1759439433166,-500.0,0.00016973,2]
[388866718,1759439433175,-500.0,0.00016973,2]
[388866719,1759439433186,-500.0,0.00016973,2]
[388866720,1759439433195,-500.0,0.00016973,2]
[388866721,1759439433205,-185.0999603,0.00016979,2]
[388866722,1759439433215,-150.0,0.00016986,2]
[388866723,1759439433226,-150.0,0.00016986,2]
[388866724,1759439433235,-150.0,0.00016986,2]
[388866725,1759439433245,-150.0,0.00016986,2]
[388866726,1759439433254,-150.0,0.00016986,2]
[388866727,1759439433264,-196.96651964,0.0001699,2]
[388866728,1759439433274,-3097.051981,0.00016996,2]
[388866729,1759439433284,-2433.7810819,0.00016996,2]
[388866730,1759439433294,-300.0,0.00016999,2]
[388866731,1759439433303,-300.0,0.00016999,2]
[388866732,1759439433312,-5028.7891186,0.00016999,2]
[388866733,1759439433360,-4991.72166057,0.00016999,2]
[388866734,1759439433370,-300.0,0.00016999,2]
[388866735,1759439433379,-150.0,0.00016999,2]
[388866736,1759439433389,-14473.07982593,0.00017,2]
[388866737,1759439433400,-66501.39235454,0.00017,2]
[388866738,1759439433410,-1631.30173172,0.00017,2]
[388866739,1759439433428,-1541.52200011,0.00017,2]
[388866740,1759439433439,-380.12415017,0.00017,2]
[388866741,1759439433451,-1182.29582589,0.00017,2]
[388866742,1759439433462,-436.60011272,0.00017,2]
[388866743,1759439433473,-339.66691684,0.00017,2]
[388866744,1759439433495,-450.0,0.00017,2]
[388866745,1759439433507,-116680.95886084,0.00017,2]
[388866746,1759439433521,-357.30360357,0.00017,2]
[388866747,1759439433534,-2660.44109029,0.00017,2]
[388866748,1759439433546,-1028.92855401,0.00017,2]
[388866749,1759439433557,-101631.23230475,0.00017,2]
[388866750,1759439433592,-1782.42933832,0.00017,2]
[388866751,1759439433607,-993.82977677,0.00017,2]
[388866752,1759439433619,-508.39401783,0.00017,2]
[388866759,1759439437813,-78257.3578087,0.00017,2]
[388866760,1759439437871,-777.83677586,0.00017,2]
[388866761,1759439437984,-528.12633655,0.00017,2]
[388866762,1759439437996,-254.58154409,0.00017,2]
[388866763,1759439438007,-505.69609867,0.00017,2]
[388866764,1759439438018,-1822.82480381,0.00017,2]
[388866765,1759439438048,-98092.09028647,0.00017,2]
[388866767,1759439438099,-60309.99999999,0.00017,2]
[388866783,1759439439884,-1336.42216074,0.00017,2]
[388866785,1759439439897,-3139.85323329,0.00017,2]
[388866786,1759439440123,-24452.68569136,0.00017,2]
[388866787,1759439440148,-1641.5,0.00017,2]
[388866788,1759439440159,-1400.29652006,0.00017,2]
[388866789,1759439440248,-311.9626791,0.00017,2]
[388866800,1759439444438,-461.412428,0.00017,2]
[388866801,1759439444455,-2033.30390268,0.00017,2]
[388866802,1759439444468,-7493.47107937,0.00017,2]
[388866803,1759439444589,-2203.0,0.00017,2]
[388866804,1759439444605,-87109.30428574,0.00017,2]
[388866805,1759439444616,-385.55875511,0.00017,2]
[388866806,1759439444627,-1130.40073013,0.00017,2]
[388866807,1759439444646,-1338.89025357,0.00017,2]
[388866820,1759439445887,-6301.40176262,0.00017,2]
[388866821,1759439445898,-409.14874246,0.00017,2]
[388866822,1759439445910,-3142.38438997,0.00017,2]
[388866823,1759439445921,-3232.77599793,0.00017,2]
[388866824,1759439445932,-6984.30355,0.00017,2]
[388866825,1759439445943,-6363.57417,0.00017,2]
[388866826,1759439445977,-829.5,0.00017,2]
[388866827,1759439445988,-64974.37418155,0.00017,2]
[388866828,1759439445999,-19824.11320757,0.00017,2]
[388866829,1759439446010,-1030.39263357,0.00017,2]
[388866830,1759439446022,-10138.17352937,0.00017,2]
[388866831,1759439446050,-4306.3172684,0.00017,2]
[388866832,1759439446061,-5558.92238823,0.00017,2]
[388866833,1759439446075,-6796.60186426,0.00017,2]
[388866834,1759439446085,-1194.09554195,0.00017,2]
[388866835,1759439446114,-8753.94990067,0.00017,2]
[388866836,1759439446125,-3891.55992437,0.00017,2]
[388866837,1759439446172,-905.87607069,0.00017,2]
[388866838,1759439446187,-47134.70810325,0.00017,2]
[388866840,1759439459146,5000.0,0.00032091,120]
[388866841,1759439461437,200.0,0.00032091,120]
[388866842,1759439479057,466.0023,0.00016518,2]
[388866844,1759439498422,433.31342733,0.0003013,120]
[388866845,1759439499583,1600.0,0.00024929,120]
[388866846,1759439550157,1173.5,0.00030136,120]
[388866847,1759439589770,1200.0,0.000165,6]
[388866848,1759439591956,2500.0,0.000166,6]
[388866849,1759439593875,150.0,0.000164,2]
[388866850,1759439597022,2000.0,0.0003,120]
[388866851,1759439597245,2000.0,0.0003,120]
[388866852,1759439597529,2000.0,0.0003,120]
[388866853,1759439597800,2000.0,0.0003,120]
[388866854,1759439598070,2000.0,0.0003,120]
[388866855,1759439598367,2000.0,0.0003,120]
[388866856,1759439598627,2000.0,0.0003,120]
[388866857,1759439598910,2000.0,0.0003,120]
[388866858,1759439599208,2000.0,0.0003,120]
[388866859,1759439599449,2000.0,0.0003,120]
[388866860,1759439599718,1391.292,0.0003,120]
[388866861,1759439600603,1000.0,0.0003,120]
[388866862,1759439601031,1000.0,0.0003,120]
[388866863,1759439601280,1000.0,0.0003,120]
[388866864,1759439601894,1000.0,0.0003,120]
[388866865,1759439602160,982.202,0.0003,120]
[388866866,1759439609154,150.0,0.00030136,120]
[388866871,1759439701747,484.48,0.00016086,2]
[388866875,1759439710582,1678.09,0.00016061,2]
[388866879,1759439761379,200.0,0.00032091,120]
[388866880,1759439771826,200000.0,0.00032091,60]
[388866881,1759439827992,662.5,0.00016002,2]
[388866882,1759439853888,91291.71,0.00015957,2]
[388866884,1759439942372,-186.58094525,0.00016619,2]
[388866885,1759439944938,-152.0,0.00016619,2]
[388866886,1759439968963,200.0,0.00015869,2]
[388866887,1759439970871,300.0,0.00016536,2]
[388866888,1759440002801,-1017.0,0.00016619,2]
[388866889,1759440028707,17504.0,0.00032083,60]
[388866890,1759440062309,200.0,0.00032083,120]
[388866891,1759440095023,150.0,0.00015881,2]
[388866892,1759440123639,150.0,0.000154,2]
[388866893,1759440123995,150.0,0.0001658,2]
[388866894,1759440126083,-244.41905475,0.00016619,2]
[388866895,1759440126106,-37.76785488,0.0001662,2]
[388866896,1759440141125,-256.52080803,0.0001662,2]
[388866897,1759440154149,504.56,0.00015874,2]
[388866898,1759440156477,-374.26547418,0.0001662,2]
[388866899,1759440169562,1124.61,0.00030136,120]
[388866900,1759440186711,-301.34359072,0.0001662,2]
[388866901,1759440242802,-300.0,0.0001662,2]
[388866902,1759440248883,-194.51279411,0.0001662,2]
[388866903,1759440284064,999.49,0.00029,120]
[388866904,1759440302651,-535.58947808,0.0001662,2]
[388866905,1759440302672,-195.0,0.0001662,2]
[388866906,1759440302693,-300.0,0.0001662,2]
[388866907,1759440302715,-169.41052192,0.0001662,2]
[388866908,1759440304588,-254.62364423,0.0001662,2]
[388866909,1759440306240,-2000.0,0.0001662,2]
[388866910,1759440313693,150.0,0.00015288,2]
[388866911,1759440313746,150.0,0.00015288,2]
[388866912,1759440319773,150.0,0.00015288,2]
[388866913,1759440334684,2359.82,0.00015904,2]
[388866916,1759440360689,200.0,0.00032081,120]
[388866917,1759440367364,-195.0,0.00016621,2]
[388866918,1759440367388,-55.0,0.00016623,2]
[388866919,1759440369010,-195.0,0.00016623,2]
[388866921,1759440424621,1100.0,0.000164,5]
[388866922,1759440427182,2200.0,0.000165,6]
[388866923,1759440428842,3300.0,0.000166,6]
[388866924,1759440483514,-282.69549406,0.00016624,2]
[388866927,1759440519143,401.26526347,0.00010136,2]
[388866928,1759440520237,-401.26526347,0.00016624,2]
[388866929,1759440522079,-516.03924247,0.00016624,2]
[388866930,1759440522787,4060.64595352,0.00032081,120]
[388866932,1759440532796,2089.15,0.000159,2]
[388866933,1759440533977,-2089.15,0.00016628,2]
[388866934,1759440536324,-410.85,0.00016628,2]
[388866935,1759440544826,150.0,0.00030136,120]
[388866949,1759440632269,-341.1992073,0.00016683,2]
[388866950,1759440632278,-500.0,0.00016692,2]
[388866951,1759440632288,-4400.0,0.000167,6]
[388866952,1759440632297,-1017.0,0.00016739,2]
[388866953,1759440632307,-1000.0,0.0001676,2]
[388866954,1759440632316,-1200.0,0.00016768,2]
[388866955,1759440632325,-150.0,0.00016769,2]
[388866956,1759440632334,-1286.8488053,0.0001677,2]
[388866957,1759440632344,-300.0,0.00016779,2]
[388866958,1759440632353,-300.0,0.00016779,2]
[388866959,1759440632363,-293.0,0.00016779,2]
[388866960,1759440632372,-200.0,0.0001679,2]
[388866961,1759440632382,-151.0,0.0001679,2]
[388866962,1759440632391,-151.0,0.0001679,2]
[388866963,1759440632400,-151.0,0.0001679,2]
[388866964,1759440632410,-151.0,0.0001679,2]
[388866965,1759440632419,-151.0,0.0001679,2]
[388866966,1759440632428,-151.0,0.0001679,2]
[388866967,1759440632439,-207.4,0.0001679,2]
[388866968,1759440632450,-308.59717103,0.0001679,2]
[388866969,1759440632461,-1000.0,0.00016796,2]
[388866970,1759440632471,-514.0,0.00016799,2]
[388866971,1759440632480,-1000.0,0.000168,2]
[388866972,1759440632489,-7792.77872446,0.000168,2]
[388866973,1759440632579,-14169.41100871,0.000168,2]
[388866974,1759440632592,-366.060186,0.000168,2]
[388866975,1759440632625,-59757.77628083,0.000168,2]
[388866977,1759440632635,-5600.0,0.000168,6]
[388866979,1759440632644,-662.5,0.00016802,2]
[388866981,1759440632653,-1000.0,0.00016831,2]
[388866983,1759440632663,-624.27271062,0.00016832,2]
[388866985,1759440632672,-1269.35990984,0.0001684,2]
[388866987,1759440632681,-1433.76,0.00016896,2]
[388866989,1759440632690,-200.0,0.00016898,2]
[388866991,1759440632699,-150.0,0.00016898,2]
[388866993,1759440632709,-150.0,0.00016898,2]
[388866995,1759440632718,-150.0,0.00016898,2]
[388866997,1759440632727,-150.0,0.00016898,2]
[388866999,1759440632738,-150.0,0.00016898,2]
[388867001,1759440632747,-150.0,0.00016898,2]
[388867003,1759440632756,-150.0,0.00016898,2]
[388867005,1759440632765,-150.0,0.00016898,2]
[388867008,1759440632774,-150.0,0.00016898,2]
[388867011,1759440632784,-500.0,0.00016898,2]
[388867013,1759440632793,-1732.0,0.00016898,2]
[388867015,1759440632803,-500.0,0.00016898,2]
[388867017,1759440632812,-500.0,0.00016898,2]
[388867019,1759440632823,-161.11524865,0.00016898,2]
[388867021,1759440632833,-500.0,0.00016898,2]
[388867023,1759440632842,-500.0,0.00016898,2]
[388867025,1759440632851,-500.0,0.00016898,2]
[388867027,1759440632860,-500.0,0.00016898,2]
[388867029,1759440632871,-500.0,0.00016898,2]
[388867031,1759440632879,-627.76322201,0.00016898,2]
[388867033,1759440632888,-500.0,0.00016898,2]
[388867035,1759440632898,-500.0,0.00016898,2]
[388867036,1759440632908,-631.16794445,0.00016898,2]
[388867038,1759440632917,-500.0,0.00016898,2]
[388867040,1759440632927,-500.0,0.00016898,2]
[388867042,1759440632937,-139.1600056,0.00016898,2]
[388867045,1759440632952,-360.8399944,0.00016898,2]
[388867047,1759440632961,-500.0,0.00016898,2]
[388867048,1759440632969,-500.0,0.00016898,2]
[388867049,1759440632978,-500.0,0.00016898,2]
[388867050,1759440632988,-500.0,0.00016898,2]
[388867051,1759440632997,-500.0,0.00016898,2]
[388867052,1759440633006,-500.0,0.00016898,2]
[388867053,1759440633016,-500.0,0.00016898,2]
[388867054,1759440633025,-500.0,0.00016898,2]
[388867055,1759440633034,-527.10820317,0.00016898,2]
[388867056,1759440633044,-500.0,0.00016898,2]
[388867057,1759440633054,-500.0,0.00016898,2]
[388867058,1759440633063,-500.0,0.00016898,2]
[388867059,1759440633073,-150.0,0.00016899,2]
[388867060,1759440633082,-150.0,0.00016899,2]
[388867061,1759440633091,-150.0,0.00016899,2]
[388867062,1759440633100,-150.0,0.00016899,2]
[388867063,1759440633111,-150.0,0.00016899,2]
[388867064,1759440633120,-150.0,0.00016899,2]
[388867065,1759440633130,-150.0,0.00016899,2]
[388867066,1759440633139,-150.0,0.00016899,2]
[388867067,1759440633148,-150.0,0.00016899,2]
[388867068,1759440633158,-150.0,0.00016899,2]
[388867069,1759440633167,-216.49252146,0.00016899,2]
[388867070,1759440633177,-150.0,0.00016899,2]
[388867071,1759440633186,-150.41623405,0.00016899,2]
[388867072,1759440633196,-150.0,0.00016899,2]
[388867073,1759440633205,-150.0,0.00016899,2]
[388867074,1759440633214,-150.0,0.00016899,2]
[388867075,1759440633224,-578.69467519,0.00016899,2]
[388867076,1759440633234,-500.0,0.00016899,2]
[388867077,1759440633243,-150.0,0.00016899,2]
[388867078,1759440633253,-740.0,0.00016899,2]
[388867079,1759440633262,-641.0,0.00016899,2]
[388867080,1759440633272,-150.0,0.00016899,2]
[388867081,1759440633282,-150.0,0.00016899,2]
[388867082,1759440633291,-150.0,0.00016899,2]
[388867083,1759440633301,-150.0,0.00016899,2]
[388867084,1759440633311,-150.0,0.00016899,2]
[388867085,1759440633321,-150.0,0.00016899,2]
[388867086,1759440633331,-1000.0,0.000169,2]
[388867087,1759440633340,-2500.0,0.000169,2]
[388867088,1759440633350,-1100.0,0.000169,6]
[388867089,1759440633360,-161.44132766,0.000169,2]
[388867090,1759440633369,-578.0259525,0.000169,2]
[388867091,1759440633378,-12581.59369717,0.000169,2]
[388867092,1759440633388,-229.3585331,0.000169,2]
[388867093,1759440633397,-196.37655249,0.000169,2]
[388867094,1759440633407,-1090.36,0.000169,2]
[388867095,1759440633417,-309.5,0.000169,2]
[388867096,1759440633427,-185.23257436,0.000169,2]
[388867097,1759440633436,-286.8603808,0.000169,2]
[388867098,1759440633446,-1404.56040054,0.000169,2]
[388867099,1759440633456,-500.0,0.00016904,2]
[388867100,1759440633465,-1000.0,0.0001693,2]
[388867101,1759440633476,-1000.0,0.0001694,2]
[388867102,1759440633485,-1425.0,0.00016959,2]
[388867103,1759440633494,-1000.0,0.00016964,2]
[388867104,1759440633504,-500.0,0.00016973,2]
[388867105,1759440633514,-595.30953576,0.00016973,2]
[388867106,1759440633523,-500.0,0.00016973,2]
[388867107,1759440633532,-500.0,0.00016973,2]
[388867108,1759440633541,-500.0,0.00016973,2]
[388867109,1759440633551,-150.0,0.00016986,2]
[388867110,1759440633560,-151.0,0.00016995,2]
[388867111,1759440633570,-150.0,0.00016998,2]
[388867112,1759440633579,-150.0,0.00016998,2]
[388867113,1759440633588,-150.0,0.00016998,2]
[388867114,1759440633597,-500.0,0.00016998,2]
[388867115,1759440633607,-500.0,0.00016998,2]
[388867116,1759440633616,-500.0,0.00016998,2]
[388867117,1759440633625,-177068.9648329,0.00016998,2]
[388867118,1759440633635,-4586.7106551,0.00016999,2]
[388867119,1759440633644,-300.0,0.00016999,2]
[388867120,1759440633653,-300.0,0.00016999,2]
[388867121,1759440633662,-150.0,0.00016999,2]
[388867122,1759440633671,-8594.04675566,0.00017,2]
[388867123,1759440633683,-35789.27422014,0.00017,2]
[388867124,1759440633706,-22002.42465655,0.00017,2]
[388867125,1759440633715,-6723.45774217,0.00017,2]
[388867126,1759440633753,-1661.98799914,0.00017,2]
[388867128,1759440638151,-1269.35990978,0.00016847,2]
[388867129,1759440638161,-150.0,0.00016898,2]
[388867130,1759440638171,-150.0,0.00016898,2]
[388867131,1759440638181,-196.96651965,0.0001699,2]
[388867132,1759440638191,-90560.67546325,0.00017,2]
[388867133,1759440638398,-16571.41127,0.00017,2]
[388867134,1759440638410,-9763.025517,0.00017,2]
[388867151,1759440640830,-150.0,0.00016898,2]
[388867152,1759440640839,-150.0,0.00016898,2]
[388867153,1759440640850,-2040.00000005,0.00017,2]
[388867154,1759440640876,-274469.09658208,0.00017,2]
[388867155,1759440640887,-1405.80737709,0.00017,2]
[388867156,1759440640899,-3519.49640971,0.00017,2]
[388867157,1759440641001,-336.4775005,0.00017,2]
[388867158,1759440641013,-2811.62310008,0.00017,2]
[388867159,1759440641064,-6050.54465774,0.00017,2]
[388867160,1759440641079,-1400.54486771,0.00017,2]
[388867171,1759440643359,-734.04574579,0.00016853,2]
[388867172,1759440643418,-535.31416399,0.00016853,2]
[388867173,1759440643428,-570.16864036,0.00017,2]
[388867174,1759440643440,-751.769335,0.00017,2]
[388867175,1759440643451,-629.11121701,0.00017,2]
[388867176,1759440643462,-387.34840818,0.00017,2]
[388867177,1759440643473,-705.2,0.00017,2]
[388867178,1759440643484,-1046.34,0.00017,2]
[388867179,1759440643508,-370.03113392,0.00017,2]
[388867180,1759440643519,-400.0,0.00017,2]
[388867181,1759440643530,-33692.15541758,0.00017,2]
[388867182,1759440643560,-1173.42251106,0.00017,2]
[388867183,1759440643571,-891.46947154,0.00017,2]
[388867216,1759440646153,-283.33269362,0.00017,2]
[388867223,1759440646212,-453.00061029,0.00017,2]
[388867225,1759440646223,-2579.01316117,0.00017,2]
[388867231,1759440646272,-15394.76015749,0.00017,2]
[388867238,1759440646331,-51708.37699864,0.00017,2]
[388867244,1759440646452,-1124.8,0.00017,2]
[388867245,1759440646563,-546.78480109,0.00017,2]
[388867246,1759440646574,-364.08768634,0.00017,2]
[388867247,1759440646586,-367.93822217,0.00017,2]
[388867248,1759440646597,-4388.01257872,0.00017,2]
[388867251,1759440659950,150.0,0.000144,2]
[388867252,1759440660640,150.0,0.0001558,2]
[388867253,1759440662824,200.0,0.00032081,120]
[388867254,1759440731622,1077.75,0.00030136,120]
[388867255,1759440795190,250.0,0.00016012,2]
[388867256,1759440920499,930.14,0.00016012,2]
[388867258,1759440961491,200.0,0.00032082,120]
[388867259,1759440975466,1000.0,0.00016438,2]
[388867261,1759441016953,-232.868,0.000167,2]
[388867262,1759441070167,1500.0,0.0001598,2]
[388867263,1759441096959,1656.79,0.00015897,2]
[388867264,1759441145072,-1865.0,0.00016706,2]
[388867265,1759441189931,150.0,0.000134,2]
[388867266,1759441190372,150.0,0.0001458,2]
[388867267,1759441190808,150.0,0.0001577,2]
[388867268,1759441230235,155.89,7.948e-05,2]
[388867269,1759441230438,155.89,8.671e-05,2]
[388867270,1759441230637,155.89,9.394e-05,2]
[388867271,1759441231316,155.89,0.00010116,2]
[388867272,1759441231479,155.89,0.00010839,2]
[388867273,1759441231562,155.89,0.00011561,2]
[388867274,1759441231746,155.89,0.00012284,2]
[388867275,1759441231991,155.89,0.00013007,2]
[388867276,1759441232251,155.89,0.00013729,2]
[388867277,1759441232419,155.89,0.00014452,2]
[388867278,1759441232615,155.89,0.00015175,2]
[388867279,1759441232919,155.89,0.00015897,2]
[388867280,1759441246733,155.89,0.00016622,2]
[388867281,1759441254197,-191.035546,0.00016622,2]
[388867282,1759441261735,200.0,0.0003207,120]
[388867283,1759441356415,1032.84,0.00030136,120]
[388867284,1759441412941,150.0,0.00016603,2]
[388867286,1759441435122,-150.0,0.00016707,2]
[388867287,1759441435149,-2000.0,0.00016707,2]
[388867288,1759441435172,-260.87757715,0.00016707,2]
[388867289,1759441435195,-300.0,0.00016707,2]
[388867290,1759441435218,-2000.0,0.00016708,2]
[388867291,1759441435240,-1200.0,0.00016708,2]
[388867292,1759441435264,-811.0,0.00016708,2]
[388867293,1759441435287,-300.0,0.00016708,2]
[388867294,1759441435309,-2135.0,0.00016716,2]